[Event "Titled Tuesday Blitz April 18 Early 2023"]
[White "Kucuksari, Kaan"]
[Black "De Souza, Cristiano Gomes"]
[WhiteFideId "6380166"]
[BlackFideId "2151758"]
[WhiteElo "2364"]
[BlackElo "2068"]
[Result "1-0"]
[Round "01"]
[TimeControl "180+2"]
[Date "2023.04.18"]
[WhiteClock "0:00:10"]
[BlackClock "0:00:56"]

1. e4 {[%clk 0:02:58]}  c5 {[%clk 0:02:57]} 2. Nf3 {[%clk 0:02:58]}  d6 {[%clk 0:02:57]} 3. d4 {[%clk 0:02:58]}  cxd4 {[%clk 0:02:57]} 4. Nxd4 {[%clk 0:02:59]}  Nf6 {[%clk 0:02:56]} 5. Nc3 {[%clk 0:02:58]}  g6 {[%clk 0:02:56]} 6. Be3 {[%clk 0:02:54]}  Bg7 {[%clk 0:02:56]} 7. f3 {[%clk 0:02:54]}  O-O {[%clk 0:02:56]} 8. Qd2 {[%clk 0:02:54]}  Nc6 {[%clk 0:02:57]} 9. O-O-O {[%clk 0:02:53]}  d5 {[%clk 0:02:58]} 10. Nxc6 {[%clk 0:02:51]}  bxc6 {[%clk 0:02:57]} 11. Bd4 {[%clk 0:02:51]}  dxe4 {[%clk 0:02:51]} 12. fxe4 {[%clk 0:02:32]}  Qa5 {[%clk 0:02:40]} 13. Kb1 {[%clk 0:02:28]}  Be6 {[%clk 0:02:39]} 14. Nd5 {[%clk 0:02:22]}  Qxd2 {[%clk 0:02:35]} 15. Nxe7+ {[%clk 0:02:17]}  Kh8 {[%clk 0:02:35]} 16. Rxd2 {[%clk 0:02:18]}  Nxe4 {[%clk 0:02:35]} 17. Bxg7+ {[%clk 0:02:17]}  Kxg7 {[%clk 0:02:36]} 18. Rd4 {[%clk 0:02:16]}  Nf2 {[%clk 0:02:24]} 19. Rg1 {[%clk 0:02:15]}  Rad8 {[%clk 0:02:23]} 20. Nxc6 {[%clk 0:02:04]}  Rxd4 {[%clk 0:02:22]} 21. Nxd4 {[%clk 0:02:05]}  Bc8 {[%clk 0:02:12]} 22. Bc4 {[%clk 0:01:56]}  Rd8 {[%clk 0:02:11]} 23. c3 {[%clk 0:01:55]}  Ne4 {[%clk 0:02:08]} 24. Kc2 {[%clk 0:01:53]}  f5 {[%clk 0:02:04]} 25. Re1 {[%clk 0:01:51]}  Kf6 {[%clk 0:02:04]} 26. Re2 {[%clk 0:01:27]}  h5 {[%clk 0:01:50]} 27. a4 {[%clk 0:01:04]}  Nc5 {[%clk 0:01:32]} 28. a5 {[%clk 0:01:03]}  Ne4 {[%clk 0:01:29]} 29. b4 {[%clk 0:00:51]}  Rd7 {[%clk 0:01:27]} 30. Bd3 {[%clk 0:00:40]}  Bb7 {[%clk 0:01:19]} 31. a6 {[%clk 0:00:40]}  Ba8 {[%clk 0:01:17]} 32. b5 {[%clk 0:00:31]}  Rc7 {[%clk 0:01:09]} 33. Bxe4 {[%clk 0:00:30]}  Bxe4+ {[%clk 0:01:07]} 34. Kb3 {[%clk 0:00:31]}  Ke5 {[%clk 0:01:05]} 35. Nc6+ {[%clk 0:00:30]}  Kf4 {[%clk 0:01:03]} 36. g3+ {[%clk 0:00:15]}  Kf3 {[%clk 0:01:02]} 37. Nd4+ {[%clk 0:00:15]}  Kg4 {[%clk 0:01:02]} 38. Re3 {[%clk 0:00:12]}  Kh3 {[%clk 0:01:01]} 39. c4 {[%clk 0:00:12]}  Kxh2 {[%clk 0:01:01]} 40. Kb4 {[%clk 0:00:13]}  g5 {[%clk 0:00:59]} 41. c5 {[%clk 0:00:13]}  h4 {[%clk 0:00:59]} 42. gxh4 {[%clk 0:00:13]}  gxh4 {[%clk 0:00:59]} 43. b6 {[%clk 0:00:13]}  axb6 {[%clk 0:00:59]} 44. cxb6 {[%clk 0:00:13]}  Rd7 {[%clk 0:00:57]} 45. Rxe4 {[%clk 0:00:07]}  fxe4 {[%clk 0:00:57]} 46. b7 {[%clk 0:00:06]}  Rxd4+ {[%clk 0:00:57]} 47. Kc5 {[%clk 0:00:07]}  e3 {[%clk 0:00:57]} 48. Kxd4 {[%clk 0:00:06]}  e2 {[%clk 0:00:57]} 49. b8=Q+ {[%clk 0:00:07]}  Kg1 {[%clk 0:00:57]} 50. Qe5 {[%clk 0:00:05]}  Kf2 {[%clk 0:00:56]} 51. Qf4+ {[%clk 0:00:05]}  Kg2 {[%clk 0:00:56]} 52. Qxh4 {[%clk 0:00:06]}  Kf1 {[%clk 0:00:55]} 53. Qh1+ {[%clk 0:00:06]}  Kf2 {[%clk 0:00:55]} 54. Qh2+ {[%clk 0:00:07]}  Kf3 {[%clk 0:00:55]} 55. Qh5+ {[%clk 0:00:07]}  Kf2 {[%clk 0:00:55]} 56. Qf5+ {[%clk 0:00:07]}  Kg1 {[%clk 0:00:54]} 57. Qg4+ {[%clk 0:00:08]}  Kf1 {[%clk 0:00:55]} 58. Qf3+ {[%clk 0:00:08]}  Ke1 {[%clk 0:00:55]} 59. Ke3 {[%clk 0:00:08]}  Kd1 {[%clk 0:00:56]} 60. Qxe2+ {[%clk 0:00:09]}  Kc1 {[%clk 0:00:56]} 61. Qd2+ {[%clk 0:00:09]}  Kb1 {[%clk 0:00:56]} 62. Kd3 {[%clk 0:00:10]} 1-0


[Site "https://www.chess.com"]

[Event "Titled Tuesday Blitz April 18 Early 2023"]
[White "Makhmudov, Shukhrat"]
[Black "Munkhgal, Gombosuren"]
[WhiteFideId "14200775"]
[BlackFideId "4901266"]
[WhiteElo "2135"]
[BlackElo "2528"]
[Result "0-1"]
[Round "01"]
[TimeControl "180+2"]
[Date "2023.04.18"]
[WhiteClock "0:01:03"]
[BlackClock "0:01:55"]

1. e4 {[%clk 0:03:00]}  d6 {[%clk 0:02:58]} 2. d4 {[%clk 0:02:56]}  Nf6 {[%clk 0:02:58]} 3. Nc3 {[%clk 0:02:56]}  g6 {[%clk 0:02:58]} 4. Bg5 {[%clk 0:02:55]}  Bg7 {[%clk 0:02:58]} 5. Qd2 {[%clk 0:02:54]}  h6 {[%clk 0:02:57]} 6. Bxf6 {[%clk 0:02:54]}  Bxf6 {[%clk 0:02:57]} 7. Nf3 {[%clk 0:02:50]}  a6 {[%clk 0:02:54]} 8. a3 {[%clk 0:02:50]}  Bg7 {[%clk 0:02:54]} 9. Bd3 {[%clk 0:02:47]}  O-O {[%clk 0:02:54]} 10. h3 {[%clk 0:02:46]}  b5 {[%clk 0:02:53]} 11. O-O {[%clk 0:02:43]}  Bb7 {[%clk 0:02:53]} 12. Rfe1 {[%clk 0:02:42]}  c5 {[%clk 0:02:53]} 13. dxc5 {[%clk 0:02:41]}  dxc5 {[%clk 0:02:53]} 14. Rad1 {[%clk 0:02:23]}  c4 {[%clk 0:02:49]} 15. Bf1 {[%clk 0:02:22]}  Nc6 {[%clk 0:02:42]} 16. Nd5 {[%clk 0:02:17]}  e6 {[%clk 0:02:40]} 17. Nc3 {[%clk 0:02:09]}  Qb6 {[%clk 0:02:35]} 18. Qc1 {[%clk 0:01:50]}  Rad8 {[%clk 0:02:35]} 19. Rxd8 {[%clk 0:01:43]}  Rxd8 {[%clk 0:02:34]} 20. Rd1 {[%clk 0:01:44]}  Rxd1 {[%clk 0:02:19]} 21. Nxd1 {[%clk 0:01:43]}  Qc5 {[%clk 0:02:16]} 22. c3 {[%clk 0:01:43]}  Ne5 {[%clk 0:02:10]} 23. Nxe5 {[%clk 0:01:41]}  Qxe5 {[%clk 0:02:11]} 24. f3 {[%clk 0:01:40]}  Bf8 {[%clk 0:02:10]} 25. Kh1 {[%clk 0:01:34]}  Bd6 {[%clk 0:02:09]} 26. Kg1 {[%clk 0:01:22]}  Qh2+ {[%clk 0:02:06]} 27. Kf2 {[%clk 0:01:22]}  Bc5+ {[%clk 0:02:07]} 28. Ne3 {[%clk 0:01:17]}  f5 {[%clk 0:02:03]} 29. Qd2 {[%clk 0:01:11]}  Qc7 {[%clk 0:01:55]} 30. exf5 {[%clk 0:01:04]}  exf5 {[%clk 0:01:55]} 31. Ke1 {[%clk 0:01:03]}  Qe7 {[%clk 0:01:55]} 0-1


[Site "https://www.chess.com"]

[Event "Titled Tuesday Blitz April 18 Early 2023"]
[White "Kim, Sergey"]
[Black "Prudnykova, Olga"]
[WhiteFideId "13700570"]
[BlackFideId "14121093"]
[WhiteElo "2606"]
[BlackElo "2113"]
[Result "1-0"]
[Round "01"]
[TimeControl "180+2"]
[Date "2023.04.18"]
[WhiteClock "0:02:41"]
[BlackClock "0:01:21"]

1. d4 {[%clk 0:03:00]}  Nf6 {[%clk 0:02:59]} 2. c4 {[%clk 0:02:59]}  g6 {[%clk 0:02:58]} 3. Nc3 {[%clk 0:02:59]}  d5 {[%clk 0:02:52]} 4. cxd5 {[%clk 0:02:59]}  Nxd5 {[%clk 0:02:51]} 5. e4 {[%clk 0:03:00]}  Nxc3 {[%clk 0:02:51]} 6. bxc3 {[%clk 0:03:01]}  Bg7 {[%clk 0:02:51]} 7. Bc4 {[%clk 0:03:02]}  c5 {[%clk 0:02:51]} 8. Ne2 {[%clk 0:03:02]}  Nc6 {[%clk 0:02:51]} 9. Be3 {[%clk 0:03:01]}  O-O {[%clk 0:02:50]} 10. O-O {[%clk 0:03:01]}  Bg4 {[%clk 0:02:50]} 11. f3 {[%clk 0:03:01]}  Na5 {[%clk 0:02:49]} 12. Bd3 {[%clk 0:03:00]}  cxd4 {[%clk 0:02:48]} 13. cxd4 {[%clk 0:03:00]}  Be6 {[%clk 0:02:47]} 14. Qd2 {[%clk 0:02:59]}  Nc4 {[%clk 0:02:42]} 15. Bxc4 {[%clk 0:02:58]}  Bxc4 {[%clk 0:02:43]} 16. Rfd1 {[%clk 0:02:59]}  e6 {[%clk 0:02:33]} 17. Ng3 {[%clk 0:02:59]}  b5 {[%clk 0:02:30]} 18. Bh6 {[%clk 0:02:58]}  Qb6 {[%clk 0:02:19]} 19. Bxg7 {[%clk 0:02:58]}  Kxg7 {[%clk 0:02:20]} 20. Qg5 {[%clk 0:02:57]}  h6 {[%clk 0:01:47]} 21. Nh5+ {[%clk 0:02:48]}  Kh7 {[%clk 0:01:39]} 22. Nf6+ {[%clk 0:02:48]}  Kg7 {[%clk 0:01:39]} 23. Qe5 {[%clk 0:02:43]}  Rad8 {[%clk 0:01:23]} 24. Nh5+ {[%clk 0:02:42]}  Kh7 {[%clk 0:01:21]} 25. Qg7# {[%clk 0:02:41]} 1-0


[Site "https://www.chess.com"]

[Event "Titled Tuesday Blitz April 18 Early 2023"]
[White "Prieto Aranguren, Alain"]
[Black "Kvaloy, Aksel Bu"]
[WhiteFideId "2268906"]
[BlackFideId "1528815"]
[WhiteElo "2209"]
[BlackElo "2208"]
[Result "1/2-1/2"]
[Round "01"]
[TimeControl "180+2"]
[Date "2023.04.18"]
[WhiteClock "0:00:19"]
[BlackClock "0:00:07"]

1. d4 {[%clk 0:02:56]}  Nf6 {[%clk 0:02:58]} 2. c4 {[%clk 0:02:55]}  e6 {[%clk 0:02:59]} 3. Nc3 {[%clk 0:02:55]}  Bb4 {[%clk 0:02:59]} 4. Bd2 {[%clk 0:02:55]}  O-O {[%clk 0:02:58]} 5. e3 {[%clk 0:02:54]}  d5 {[%clk 0:02:58]} 6. cxd5 {[%clk 0:02:53]}  exd5 {[%clk 0:02:58]} 7. Nf3 {[%clk 0:02:53]}  b6 {[%clk 0:02:58]} 8. Bd3 {[%clk 0:02:51]}  Bb7 {[%clk 0:02:58]} 9. Ne5 {[%clk 0:02:50]}  Bd6 {[%clk 0:02:57]} 10. f4 {[%clk 0:02:46]}  c5 {[%clk 0:02:57]} 11. O-O {[%clk 0:02:46]}  Nc6 {[%clk 0:02:57]} 12. Nxc6 {[%clk 0:02:42]}  Bxc6 {[%clk 0:02:57]} 13. Qf3 {[%clk 0:02:32]}  Qe7 {[%clk 0:02:49]} 14. Be1 {[%clk 0:02:29]}  Ne4 {[%clk 0:02:48]} 15. Bxe4 {[%clk 0:02:27]}  dxe4 {[%clk 0:02:49]} 16. Qd1 {[%clk 0:02:25]}  cxd4 {[%clk 0:02:48]} 17. Qxd4 {[%clk 0:02:16]}  Bc5 {[%clk 0:02:47]} 18. Qd2 {[%clk 0:02:16]}  Rad8 {[%clk 0:02:47]} 19. Qe2 {[%clk 0:02:14]}  Rd3 {[%clk 0:02:39]} 20. Bf2 {[%clk 0:02:14]}  Rfd8 {[%clk 0:02:39]} 21. Rfd1 {[%clk 0:02:10]}  h6 {[%clk 0:02:34]} 22. Rac1 {[%clk 0:02:01]}  Qd7 {[%clk 0:02:20]} 23. Kh1 {[%clk 0:01:51]}  Rd2 {[%clk 0:02:16]} 24. Rxd2 {[%clk 0:01:46]}  Qxd2 {[%clk 0:02:17]} 25. Rd1 {[%clk 0:01:42]}  Qxd1+ {[%clk 0:02:05]} 26. Nxd1 {[%clk 0:01:41]}  Bb5 {[%clk 0:02:05]} 27. Qxb5 {[%clk 0:01:21]}  Rxd1+ {[%clk 0:02:05]} 28. Bg1 {[%clk 0:01:22]}  f5 {[%clk 0:01:35]} 29. Qe2 {[%clk 0:01:18]}  Ra1 {[%clk 0:01:35]} 30. a3 {[%clk 0:01:15]}  a5 {[%clk 0:01:34]} 31. h3 {[%clk 0:01:13]}  g5 {[%clk 0:01:30]} 32. fxg5 {[%clk 0:01:12]}  hxg5 {[%clk 0:01:30]} 33. Kh2 {[%clk 0:01:10]}  Kg7 {[%clk 0:01:24]} 34. Bf2 {[%clk 0:01:05]}  Kf6 {[%clk 0:01:12]} 35. Bg3 {[%clk 0:01:04]}  f4 {[%clk 0:01:09]} 36. b4 {[%clk 0:00:47]}  fxg3+ {[%clk 0:01:07]} 37. Kxg3 {[%clk 0:00:46]}  Bd6+ {[%clk 0:01:06]} 38. Kg4 {[%clk 0:00:47]}  axb4 {[%clk 0:01:02]} 39. axb4 {[%clk 0:00:43]}  Be5 {[%clk 0:00:27]} 40. Qf2+ {[%clk 0:00:39]}  Ke6 {[%clk 0:00:28]} 41. Qf5+ {[%clk 0:00:37]}  Kd5 {[%clk 0:00:28]} 42. Kxg5 {[%clk 0:00:32]}  Ra7 {[%clk 0:00:28]} 43. Qc8 {[%clk 0:00:28]}  Rg7+ {[%clk 0:00:28]} 44. Kh6 {[%clk 0:00:26]}  Rxg2 {[%clk 0:00:18]} 45. Qb7+ {[%clk 0:00:26]}  Ke6 {[%clk 0:00:18]} 46. Qxe4 {[%clk 0:00:24]}  Rg3 {[%clk 0:00:17]} 47. h4 {[%clk 0:00:22]}  Kf6 {[%clk 0:00:14]} 48. h5 {[%clk 0:00:21]}  Rg8 {[%clk 0:00:13]} 49. Qh4+ {[%clk 0:00:21]}  Kf5 {[%clk 0:00:11]} 50. Qh3+ {[%clk 0:00:20]}  Kf6 {[%clk 0:00:10]} 51. Qf3+ {[%clk 0:00:20]}  Ke6 {[%clk 0:00:10]} 52. Qe4 {[%clk 0:00:19]}  Kf6 {[%clk 0:00:09]} 53. Qc6+ {[%clk 0:00:18]}  Kf5 {[%clk 0:00:09]} 54. Qd7+ {[%clk 0:00:18]}  Kf6 {[%clk 0:00:09]} 55. Qc6+ {[%clk 0:00:17]}  Kf5 {[%clk 0:00:09]} 56. Qf3+ {[%clk 0:00:18]}  Ke6 {[%clk 0:00:09]} 57. Kh7 {[%clk 0:00:17]}  Rh8+ {[%clk 0:00:08]} 58. Kg6 {[%clk 0:00:18]}  Rg8+ {[%clk 0:00:09]} 59. Kh7 {[%clk 0:00:18]}  Rh8+ {[%clk 0:00:09]} 60. Kg6 {[%clk 0:00:19]}  Rg8+ {[%clk 0:00:07]} 61. Kh7 {[%clk 0:00:19]} 1/2-1/2


[Site "https://www.chess.com"]

[Event "Titled Tuesday Blitz April 18 Early 2023"]
[White "Atanasov, Anthony"]
[Black "Nery Junior, Jose Antonio"]
[WhiteFideId "2623897"]
[BlackFideId "2104822"]
[WhiteElo "2326"]
[BlackElo "2197"]
[Result "1-0"]
[Round "01"]
[TimeControl "180+2"]
[Date "2023.04.18"]
[WhiteClock "0:02:40"]
[BlackClock "0:00:53"]

1. d4 {[%clk 0:03:00]}  d5 {[%clk 0:02:58]} 2. Bf4 {[%clk 0:02:59]}  c5 {[%clk 0:02:58]} 3. e3 {[%clk 0:03:00]}  Nc6 {[%clk 0:02:59]} 4. Nf3 {[%clk 0:03:00]}  Nf6 {[%clk 0:02:59]} 5. Nbd2 {[%clk 0:03:00]}  Bg4 {[%clk 0:02:59]} 6. c3 {[%clk 0:03:00]}  e6 {[%clk 0:02:54]} 7. Qb3 {[%clk 0:03:00]}  Qb6 {[%clk 0:02:48]} 8. Qxb6 {[%clk 0:02:59]}  axb6 {[%clk 0:02:49]} 9. Bb5 {[%clk 0:03:00]}  Nd7 {[%clk 0:02:43]} 10. Ne5 {[%clk 0:02:59]}  Ndxe5 {[%clk 0:02:37]} 11. Bxe5 {[%clk 0:02:59]}  f6 {[%clk 0:02:34]} 12. Bc7 {[%clk 0:02:56]}  Ra5 {[%clk 0:02:07]} 13. a4 {[%clk 0:02:54]}  Kd7 {[%clk 0:01:52]} 14. Bxb6 {[%clk 0:02:53]}  Ra8 {[%clk 0:01:51]} 15. dxc5 {[%clk 0:02:52]}  Be7 {[%clk 0:01:46]} 16. f3 {[%clk 0:02:50]}  Bh5 {[%clk 0:01:45]} 17. c4 {[%clk 0:02:48]}  Bf7 {[%clk 0:01:41]} 18. b4 {[%clk 0:02:47]}  Bd8 {[%clk 0:01:38]} 19. Bxd8 {[%clk 0:02:44]}  Rhxd8 {[%clk 0:01:39]} 20. cxd5 {[%clk 0:02:44]}  exd5 {[%clk 0:01:39]} 21. Nb3 {[%clk 0:02:44]}  Kc7 {[%clk 0:01:36]} 22. Bxc6 {[%clk 0:02:43]}  bxc6 {[%clk 0:01:36]} 23. Kd2 {[%clk 0:02:44]}  Rab8 {[%clk 0:01:27]} 24. Kc3 {[%clk 0:02:43]}  Rb7 {[%clk 0:01:21]} 25. Nd4 {[%clk 0:02:43]}  Rdb8 {[%clk 0:01:13]} 26. b5 {[%clk 0:02:43]}  cxb5 {[%clk 0:01:04]} 27. axb5 {[%clk 0:02:44]}  Rxb5 {[%clk 0:00:52]} 28. Nxb5+ {[%clk 0:02:40]}  Rxb5 {[%clk 0:00:53]} 29. Ra7+ {[%clk 0:02:40]} 1-0


[Site "https://www.chess.com"]

[Event "Titled Tuesday Blitz April 18 Early 2023"]
[White "Girya, Olga"]
[Black "ilya2700"]
[WhiteFideId "4195752"]
[WhiteElo "2263"]
[BlackElo "2282"]
[Result "1-0"]
[Round "01"]
[TimeControl "180+2"]
[Date "2023.04.18"]
[WhiteClock "0:00:10"]
[BlackClock "0:00:01"]

1. d4 {[%clk 0:03:00]}  Nf6 {[%clk 0:03:00]} 2. Nf3 {[%clk 0:03:00]}  g6 {[%clk 0:03:00]} 3. Bg5 {[%clk 0:03:00]}  Bg7 {[%clk 0:03:01]} 4. Nbd2 {[%clk 0:03:00]}  d5 {[%clk 0:03:00]} 5. Bxf6 {[%clk 0:03:00]}  Bxf6 {[%clk 0:02:59]} 6. e4 {[%clk 0:03:00]}  dxe4 {[%clk 0:02:59]} 7. Nxe4 {[%clk 0:03:01]}  Bg7 {[%clk 0:03:00]} 8. Bc4 {[%clk 0:03:00]}  O-O {[%clk 0:02:59]} 9. c3 {[%clk 0:03:00]}  Nd7 {[%clk 0:02:51]} 10. O-O {[%clk 0:03:00]}  b6 {[%clk 0:02:49]} 11. Re1 {[%clk 0:02:57]}  Bb7 {[%clk 0:02:48]} 12. Qe2 {[%clk 0:02:54]}  e6 {[%clk 0:02:47]} 13. Rad1 {[%clk 0:02:52]}  Nf6 {[%clk 0:02:40]} 14. Neg5 {[%clk 0:02:42]}  h6 {[%clk 0:02:27]} 15. Nxf7 {[%clk 0:02:33]}  Rxf7 {[%clk 0:02:23]} 16. Bxe6 {[%clk 0:02:30]}  Bd5 {[%clk 0:01:54]} 17. Bxf7+ {[%clk 0:02:29]}  Bxf7 {[%clk 0:01:51]} 18. Ne5 {[%clk 0:02:29]}  Qf8 {[%clk 0:01:29]} 19. Nxf7 {[%clk 0:02:19]}  Qxf7 {[%clk 0:01:29]} 20. Qf3 {[%clk 0:02:18]}  Rf8 {[%clk 0:01:27]} 21. d5 {[%clk 0:02:09]}  Qd7 {[%clk 0:01:21]} 22. Re6 {[%clk 0:01:47]}  Nh5 {[%clk 0:01:14]} 23. Qg4 {[%clk 0:01:19]}  Nf4 {[%clk 0:01:14]} 24. Rxg6 {[%clk 0:01:19]}  Rf5 {[%clk 0:00:48]} 25. Re6 {[%clk 0:00:49]}  Rxd5 {[%clk 0:00:37]} 26. Rxd5 {[%clk 0:00:40]}  Qxd5 {[%clk 0:00:25]} 27. Re1 {[%clk 0:00:35]}  Qf7 {[%clk 0:00:06]} 28. Qf3 {[%clk 0:00:23]}  Ng6 {[%clk 0:00:05]} 29. Qa8+ {[%clk 0:00:20]}  Kh7 {[%clk 0:00:05]} 30. Qxa7 {[%clk 0:00:19]}  Be5 {[%clk 0:00:04]} 31. Qb7 {[%clk 0:00:14]}  Qf4 {[%clk 0:00:04]} 32. g3 {[%clk 0:00:14]}  Qd2 {[%clk 0:00:04]} 33. Qe4 {[%clk 0:00:14]}  Bg7 {[%clk 0:00:02]} 34. h4 {[%clk 0:00:14]}  h5 {[%clk 0:00:01]} 35. Re2 {[%clk 0:00:12]}  Qc1+ {[%clk 0:00:01]} 36. Kg2 {[%clk 0:00:12]}  Qd1 {[%clk 0:00:01]} 37. Qf3 {[%clk 0:00:11]}  Qd6 {[%clk 0:00:02]} 38. Qxh5+ {[%clk 0:00:11]}  Kg8 {[%clk 0:00:01]} 39. Re8+ {[%clk 0:00:11]}  Kf7 {[%clk 0:00:01]} 40. Re3 {[%clk 0:00:10]} 1-0


[Site "https://www.chess.com"]

[Event "Titled Tuesday Blitz April 18 Early 2023"]
[White "Jiganchine, Roman"]
[Black "Hirneise, Jens"]
[WhiteFideId "2603667"]
[BlackFideId "24614734"]
[WhiteElo "2268"]
[BlackElo "2345"]
[Result "1-0"]
[Round "01"]
[TimeControl "180+2"]
[Date "2023.04.18"]
[WhiteClock "0:00:13"]
[BlackClock "0:00:18"]

1. e4 {[%clk 0:02:58]}  c5 {[%clk 0:02:52]} 2. Nf3 {[%clk 0:02:55]}  e6 {[%clk 0:02:51]} 3. g3 {[%clk 0:02:51]}  d5 {[%clk 0:02:50]} 4. exd5 {[%clk 0:02:50]}  Qxd5 {[%clk 0:02:49]} 5. Bg2 {[%clk 0:02:50]}  Nf6 {[%clk 0:02:48]} 6. O-O {[%clk 0:02:49]}  Be7 {[%clk 0:02:46]} 7. d4 {[%clk 0:02:37]}  O-O {[%clk 0:02:44]} 8. c4 {[%clk 0:02:27]}  Qd8 {[%clk 0:02:41]} 9. Nc3 {[%clk 0:02:24]}  cxd4 {[%clk 0:02:37]} 10. Nxd4 {[%clk 0:02:22]}  a6 {[%clk 0:02:37]} 11. Bf4 {[%clk 0:02:17]}  Nbd7 {[%clk 0:02:32]} 12. Qe2 {[%clk 0:02:12]}  Qa5 {[%clk 0:02:13]} 13. Nb3 {[%clk 0:02:10]}  Qh5 {[%clk 0:02:11]} 14. Rad1 {[%clk 0:01:56]}  Qxe2 {[%clk 0:02:05]} 15. Nxe2 {[%clk 0:01:56]}  e5 {[%clk 0:01:54]} 16. Be3 {[%clk 0:01:48]}  Ng4 {[%clk 0:01:47]} 17. Bc1 {[%clk 0:01:46]}  Rb8 {[%clk 0:01:46]} 18. Nc3 {[%clk 0:01:43]}  Ngf6 {[%clk 0:01:44]} 19. Rfe1 {[%clk 0:01:38]}  Re8 {[%clk 0:01:40]} 20. h3 {[%clk 0:01:28]}  Bb4 {[%clk 0:01:38]} 21. Bd2 {[%clk 0:01:21]}  Bf8 {[%clk 0:01:30]} 22. a3 {[%clk 0:01:20]}  Nc5 {[%clk 0:01:29]} 23. Nxc5 {[%clk 0:01:19]}  Bxc5 {[%clk 0:01:30]} 24. b4 {[%clk 0:01:18]}  Bb6 {[%clk 0:01:22]} 25. Bg5 {[%clk 0:01:14]}  h6 {[%clk 0:01:20]} 26. Bxf6 {[%clk 0:01:13]}  gxf6 {[%clk 0:01:21]} 27. Nd5 {[%clk 0:01:09]}  Bd8 {[%clk 0:01:21]} 28. Kh2 {[%clk 0:01:01]}  Be6 {[%clk 0:01:21]} 29. f4 {[%clk 0:00:58]}  exf4 {[%clk 0:01:15]} 30. Nxf4 {[%clk 0:00:57]}  Bc7 {[%clk 0:01:12]} 31. Nd5 {[%clk 0:00:54]}  Bxd5 {[%clk 0:01:10]} 32. Bxd5 {[%clk 0:00:49]}  Rxe1 {[%clk 0:01:06]} 33. Rxe1 {[%clk 0:00:48]}  Be5 {[%clk 0:01:07]} 34. Re2 {[%clk 0:00:40]}  b6 {[%clk 0:01:04]} 35. Kg2 {[%clk 0:00:39]}  Kf8 {[%clk 0:01:00]} 36. Kf3 {[%clk 0:00:39]}  Ke7 {[%clk 0:01:00]} 37. Kg4 {[%clk 0:00:39]}  Rg8+ {[%clk 0:00:57]} 38. Kh4 {[%clk 0:00:32]}  Rxg3 {[%clk 0:00:58]} 39. Rxe5+ {[%clk 0:00:31]}  fxe5 {[%clk 0:00:58]} 40. Kxg3 {[%clk 0:00:31]}  f5 {[%clk 0:00:57]} 41. Bg8 {[%clk 0:00:29]}  a5 {[%clk 0:00:49]} 42. Bh7 {[%clk 0:00:25]}  axb4 {[%clk 0:00:47]} 43. axb4 {[%clk 0:00:24]}  Ke6 {[%clk 0:00:47]} 44. Kf3 {[%clk 0:00:23]}  Kf6 {[%clk 0:00:43]} 45. Ke3 {[%clk 0:00:21]}  Ke6 {[%clk 0:00:43]} 46. Kd3 {[%clk 0:00:21]}  Kf6 {[%clk 0:00:36]} 47. Bg8 {[%clk 0:00:20]}  Ke7 {[%clk 0:00:30]} 48. Bd5 {[%clk 0:00:20]}  Kd6 {[%clk 0:00:29]} 49. Bg2 {[%clk 0:00:19]}  Ke6 {[%clk 0:00:27]} 50. Bf1 {[%clk 0:00:18]}  Kd6 {[%clk 0:00:27]} 51. Ke3 {[%clk 0:00:18]}  Ke6 {[%clk 0:00:28]} 52. Bd3 {[%clk 0:00:19]}  Kf6 {[%clk 0:00:27]} 53. Bc2 {[%clk 0:00:18]}  Ke6 {[%clk 0:00:27]} 54. Bb3 {[%clk 0:00:18]}  Kd6 {[%clk 0:00:26]} 55. Bc2 {[%clk 0:00:17]}  Ke6 {[%clk 0:00:26]} 56. Kf3 {[%clk 0:00:17]}  Kf6 {[%clk 0:00:26]} 57. h4 {[%clk 0:00:18]}  Ke6 {[%clk 0:00:25]} 58. Ke3 {[%clk 0:00:17]}  Kf6 {[%clk 0:00:26]} 59. Kd2 {[%clk 0:00:17]}  Ke6 {[%clk 0:00:26]} 60. Kc3 {[%clk 0:00:17]}  Kf6 {[%clk 0:00:20]} 61. c5 {[%clk 0:00:17]}  bxc5 {[%clk 0:00:21]} 62. bxc5 {[%clk 0:00:17]}  Ke6 {[%clk 0:00:22]} 63. Kc4 {[%clk 0:00:17]}  e4 {[%clk 0:00:17]} 64. Kd4 {[%clk 0:00:17]}  Kf6 {[%clk 0:00:18]} 65. Bb3 {[%clk 0:00:14]}  Ke7 {[%clk 0:00:16]} 66. Ke5 {[%clk 0:00:14]}  e3 {[%clk 0:00:16]} 67. Bc4 {[%clk 0:00:14]}  Kd7 {[%clk 0:00:16]} 68. Kxf5 {[%clk 0:00:13]}  Kc6 {[%clk 0:00:16]} 69. Kg6 {[%clk 0:00:13]}  Kxc5 {[%clk 0:00:17]} 70. Be2 {[%clk 0:00:13]}  Kd6 {[%clk 0:00:17]} 71. Kxh6 {[%clk 0:00:13]}  Ke7 {[%clk 0:00:18]} 72. Kg7 {[%clk 0:00:13]} 1-0


[Site "https://www.chess.com"]

[Event "Titled Tuesday Blitz April 18 Early 2023"]
[White "Fiorito, Francisco"]
[Black "Kyaw Lay Htaik"]
[WhiteFideId "180165"]
[BlackFideId "13002007"]
[WhiteElo "2341"]
[BlackElo "2261"]
[Result "0-1"]
[Round "01"]
[TimeControl "180+2"]
[Date "2023.04.18"]
[WhiteClock "0:00:05"]
[BlackClock "0:00:38"]

1. d4 {[%clk 0:03:00]}  Nf6 {[%clk 0:02:59]} 2. Nc3 {[%clk 0:03:00]}  d5 {[%clk 0:02:59]} 3. Bf4 {[%clk 0:03:00]}  a6 {[%clk 0:02:58]} 4. e3 {[%clk 0:03:00]}  Bf5 {[%clk 0:02:57]} 5. f3 {[%clk 0:03:00]}  c5 {[%clk 0:02:54]} 6. g4 {[%clk 0:03:00]}  cxd4 {[%clk 0:02:49]} 7. exd4 {[%clk 0:02:59]}  Bg6 {[%clk 0:02:48]} 8. h4 {[%clk 0:02:58]}  h6 {[%clk 0:02:46]} 9. Bd3 {[%clk 0:02:55]}  Bxd3 {[%clk 0:02:46]} 10. Qxd3 {[%clk 0:02:56]}  e6 {[%clk 0:02:46]} 11. Nge2 {[%clk 0:02:55]}  Nc6 {[%clk 0:02:46]} 12. a3 {[%clk 0:02:53]}  Be7 {[%clk 0:02:44]} 13. O-O-O {[%clk 0:02:52]}  Rc8 {[%clk 0:02:44]} 14. g5 {[%clk 0:02:52]}  Nh5 {[%clk 0:02:43]} 15. g6 {[%clk 0:02:42]}  O-O {[%clk 0:02:36]} 16. Rdg1 {[%clk 0:02:39]}  Nxf4 {[%clk 0:02:35]} 17. Nxf4 {[%clk 0:02:39]}  Qd6 {[%clk 0:02:20]} 18. gxf7+ {[%clk 0:02:31]}  Rxf7 {[%clk 0:02:20]} 19. Nh5 {[%clk 0:02:30]}  e5 {[%clk 0:02:05]} 20. Rg6 {[%clk 0:02:10]}  e4 {[%clk 0:01:49]} 21. Rxd6 {[%clk 0:01:55]}  exd3 {[%clk 0:01:49]} 22. Rd7 {[%clk 0:01:54]}  Bg5+ {[%clk 0:01:46]} 23. hxg5 {[%clk 0:01:53]}  Rxd7 {[%clk 0:01:47]} 24. gxh6 {[%clk 0:01:53]}  Nxd4 {[%clk 0:01:36]} 25. cxd3 {[%clk 0:01:47]}  Nxf3 {[%clk 0:01:32]} 26. hxg7 {[%clk 0:01:28]}  Rc6 {[%clk 0:01:27]} 27. Rf1 {[%clk 0:01:21]}  Rf7 {[%clk 0:01:20]} 28. Kd1 {[%clk 0:01:20]}  Rh6 {[%clk 0:01:15]} 29. Ng3 {[%clk 0:01:04]}  Rg6 {[%clk 0:01:06]} 30. Nge2 {[%clk 0:00:59]}  d4 {[%clk 0:01:02]} 31. Ne4 {[%clk 0:00:58]}  Rgxg7 {[%clk 0:01:02]} 32. Nd6 {[%clk 0:00:56]}  Rd7 {[%clk 0:01:00]} 33. Nf5 {[%clk 0:00:30]}  Nh2 {[%clk 0:01:00]} 34. Rh1 {[%clk 0:00:20]}  Rg2 {[%clk 0:00:58]} 35. Nfxd4 {[%clk 0:00:13]}  Ng4 {[%clk 0:00:53]} 36. Rh5 {[%clk 0:00:06]}  Nf6 {[%clk 0:00:50]} 37. Rf5 {[%clk 0:00:05]}  Kg7 {[%clk 0:00:49]} 38. b4 {[%clk 0:00:02]}  Nd5 {[%clk 0:00:47]} 39. Kd2 {[%clk 0:00:02]}  Nxb4 {[%clk 0:00:40]} 40. Ne6+ {[%clk 0:00:02]}  Kg6 {[%clk 0:00:40]} 41. axb4 {[%clk 0:00:01]}  Kxf5 {[%clk 0:00:39]} 42. Nc5 {[%clk 0:00:02]}  Re7 {[%clk 0:00:37]} 43. Ne4 {[%clk 0:00:02]}  Rxe4 {[%clk 0:00:37]} 44. dxe4+ {[%clk 0:00:03]}  Kxe4 {[%clk 0:00:38]} 45. Kd1 {[%clk 0:00:04]}  Rxe2 {[%clk 0:00:37]} 46. Kxe2 {[%clk 0:00:04]}  Kd4 {[%clk 0:00:37]} 47. Kd2 {[%clk 0:00:05]}  Kc4 {[%clk 0:00:38]} 48. b5 {[%clk 0:00:05]}  Kxb5 {[%clk 0:00:38]} 0-1


[Site "https://www.chess.com"]